{"text_format":"3","workbook":"xlsx","n_sheets":2,"sheets":["Budformulär","Kostnadsöverslag"],"not_rendered":{"charts":1,"images":2,"defined_names":4},"read":"whole","date_system":"1900"}

{"sheet":"Budformulär","index":0,"n_rows":48,"n_cols":7,"rows_kept":48,"merged":[[15,1,25,5],[29,1,31,5],[35,1,37,5],[43,1,45,5]]}
[]
[null,"FORMULÄR FÖR BYGGNADSBUD",{"$nulls":4}," "]
[]
[]
[null,"INFORMATION OM ÄGARE",null,null,"INFORMATION OM HANTVERKARE"]
[null,"Namn","Johan Käck",null,"Företag","Fabrikam, Inc."]
[null,"Adress","Huvudgatan 123",null,"Namn","Magnus Hedlund"]
[null,"Postnummer, ort","Storköping",null,"Adress","123 45"]
[null,"Telefon",8885550111,null,"Postnummer, ort","Storköping"]
[null,"E-post","johan@proseware.com",null,"Telefon",8885550123]
[{"$nulls":4},"E-post","magnus@fabrikam.com"]
[null,"Projektnamn","Trappor till företag",null,"Datum för slutförande","2013-07-14"]
[]
[null,"ARBETSOMFATTNING"]
[]
[null,"Här anger du projektomfattningen. Skriv specifikationer du vill ha med. Det här är ett provprojekt för byggnation av en stor trappa. Vi använder endast virke med storlekarna 2x4 och 2x8 och balkskor till att bygga ramen. Trappstegen sågas ut från materialet med storleken 2x4. Skruvar kortare än 2 cm kommer inte att användas, och inte heller spikar mindre än 3 tum. Konstruktionen ska klara drygt 200 kilo per trappsteg. Stegen ska vara i höjd med husets. En tröskel monteras på huset. Hantverkaren tar hand om städning."]
{"$rows_empty":11}
[null,"INGÅR EJ"]
[]
[null,"Inga räcken kommer att monteras. Marken ska förberedas av ägaren. Trappan målas av ägaren."]
[]
[]
[]
[null,"OFFERT"]
[]
[null,"Vi, Fabrikam, Inc., föreslår ovannämnda arbetsomfattning med slutförandedatumet 2011-07-14 till priset 4764,30 kronor."]
[]
[]
[]
[null,"Inskickat av (företagsrepresentant)",{"$nulls":3},"Datum"]
[]
[null,"ÄGARENS GODKÄNNANDE"]
[]
[null,"Jag, Johan Käck, godkänner ovan nämnda arbetsomfattning, med 2011-07-14 som föreslaget datum för slutförande, till priset 4764,30 kronor."]
[]
[]
[]
[null,"Presenterat av (hemägare eller godkänd represenan",{"$nulls":3},"Datum"]

{"sheet":"Kostnadsöverslag","index":1,"n_rows":47,"n_cols":6,"rows_kept":47,"merged":[[42,3,42,4],[43,3,43,4],[44,3,44,4],[45,3,45,4],[46,3,46,4],[47,3,47,4],[48,3,48,4],[49,3,49,4]]}
[]
[null,"BUDSAMMANFATTNING",{"$nulls":3}," "]
[]
[]
[null,"MATERIAL- OCH KOSTNADSLISTA"]
[]
[null,"Kvantitet","Beskrivning","Kostnad","Totalt"," "]
[null,5,"2x8x10 virke",{"v":6.75,"d":"6.75 kr"},{"$f":"Budobjekt[Kostnad]*Budobjekt[Kvantitet]","v":{"v":33.75,"d":"33.75 kr"}},{"$f":"_xlfn.RANK.EQ(Budobjekt[[#This Row],[Totalt]],Budobjekt[Totalt])","v":4}]
[null,20,"2x4x10 virke",{"v":4.97,"d":"4.97 kr"},{"$f":"Budobjekt[Kostnad]*Budobjekt[Kvantitet]","v":{"v":99.39999999999999,"d":"99.40 kr"}},{"$f":"_xlfn.RANK.EQ(Budobjekt[[#This Row],[Totalt]],Budobjekt[Totalt])","v":2}]
[null,30,"Balksko",{"v":2.49,"d":"2.49 kr"},{"$f":"Budobjekt[Kostnad]*Budobjekt[Kvantitet]","v":{"v":74.7,"d":"74.70 kr"}},{"$f":"_xlfn.RANK.EQ(Budobjekt[[#This Row],[Totalt]],Budobjekt[Totalt])","v":3}]
[null,2,"Låda med skruvar, 22 mm",{"v":6.67,"d":"6.67 kr"},{"$f":"Budobjekt[Kostnad]*Budobjekt[Kvantitet]","v":{"v":13.34,"d":"13.34 kr"}},{"$f":"_xlfn.RANK.EQ(Budobjekt[[#This Row],[Totalt]],Budobjekt[Totalt])","v":6}]
[null,2,"Spikar, 3 tum",{"v":3.25,"d":"3.25 kr"},{"$f":"Budobjekt[Kostnad]*Budobjekt[Kvantitet]","v":{"v":6.5,"d":"6.50 kr"}},{"$f":"_xlfn.RANK.EQ(Budobjekt[[#This Row],[Totalt]],Budobjekt[Totalt])","v":7}]
[null,2,"Ett par handskar, läder",{"v":7.75,"d":"7.75 kr"},{"$f":"Budobjekt[Kostnad]*Budobjekt[Kvantitet]","v":{"v":15.5,"d":"15.50 kr"}},{"$f":"_xlfn.RANK.EQ(Budobjekt[[#This Row],[Totalt]],Budobjekt[Totalt])","v":5}]
[null,2,"Arbetskostnader",{"v":100,"d":"100.00 kr"},{"$f":"Budobjekt[Kostnad]*Budobjekt[Kvantitet]","v":{"v":200,"d":"200.00 kr"}},{"$f":"_xlfn.RANK.EQ(Budobjekt[[#This Row],[Totalt]],Budobjekt[Totalt])","v":1}]
[{"$nulls":4},{"$f":"Budobjekt[Kostnad]*Budobjekt[Kvantitet]","v":0},{"$f":"_xlfn.RANK.EQ(Budobjekt[[#This Row],[Totalt]],Budobjekt[Totalt])","v":8}]
[{"$nulls":4},{"$f":"Budobjekt[Kostnad]*Budobjekt[Kvantitet]","v":0},{"$f":"_xlfn.RANK.EQ(Budobjekt[[#This Row],[Totalt]],Budobjekt[Totalt])","v":8}]
[{"$nulls":4},{"$f":"Budobjekt[Kostnad]*Budobjekt[Kvantitet]","v":0},{"$f":"_xlfn.RANK.EQ(Budobjekt[[#This Row],[Totalt]],Budobjekt[Totalt])","v":8}]
[{"$nulls":4},{"$f":"Budobjekt[Kostnad]*Budobjekt[Kvantitet]","v":0},{"$f":"_xlfn.RANK.EQ(Budobjekt[[#This Row],[Totalt]],Budobjekt[Totalt])","v":8}]
[{"$nulls":4},{"$f":"Budobjekt[Kostnad]*Budobjekt[Kvantitet]","v":0},{"$f":"_xlfn.RANK.EQ(Budobjekt[[#This Row],[Totalt]],Budobjekt[Totalt])","v":8}]
[{"$nulls":4},{"$f":"Budobjekt[Kostnad]*Budobjekt[Kvantitet]","v":0},{"$f":"_xlfn.RANK.EQ(Budobjekt[[#This Row],[Totalt]],Budobjekt[Totalt])","v":8}]
[{"$nulls":4},{"$f":"Budobjekt[Kostnad]*Budobjekt[Kvantitet]","v":0},{"$f":"_xlfn.RANK.EQ(Budobjekt[[#This Row],[Totalt]],Budobjekt[Totalt])","v":8}]
[{"$nulls":4},{"$f":"Budobjekt[Kostnad]*Budobjekt[Kvantitet]","v":0},{"$f":"_xlfn.RANK.EQ(Budobjekt[[#This Row],[Totalt]],Budobjekt[Totalt])","v":8}]
[{"$nulls":4},{"$f":"Budobjekt[Kostnad]*Budobjekt[Kvantitet]","v":0},{"$f":"_xlfn.RANK.EQ(Budobjekt[[#This Row],[Totalt]],Budobjekt[Totalt])","v":8}]
[{"$nulls":4},{"$f":"Budobjekt[Kostnad]*Budobjekt[Kvantitet]","v":0},{"$f":"_xlfn.RANK.EQ(Budobjekt[[#This Row],[Totalt]],Budobjekt[Totalt])","v":8}]
[{"$nulls":4},{"$f":"Budobjekt[Kostnad]*Budobjekt[Kvantitet]","v":0},{"$f":"_xlfn.RANK.EQ(Budobjekt[[#This Row],[Totalt]],Budobjekt[Totalt])","v":8}]
[{"$nulls":4},{"$f":"Budobjekt[Kostnad]*Budobjekt[Kvantitet]","v":0},{"$f":"_xlfn.RANK.EQ(Budobjekt[[#This Row],[Totalt]],Budobjekt[Totalt])","v":8}]
[{"$nulls":4},{"$f":"Budobjekt[Kostnad]*Budobjekt[Kvantitet]","v":0},{"$f":"_xlfn.RANK.EQ(Budobjekt[[#This Row],[Totalt]],Budobjekt[Totalt])","v":8}]
[{"$nulls":4},{"$f":"Budobjekt[Kostnad]*Budobjekt[Kvantitet]","v":0},{"$f":"_xlfn.RANK.EQ(Budobjekt[[#This Row],[Totalt]],Budobjekt[Totalt])","v":8}]
[{"$nulls":4},{"$f":"Budobjekt[Kostnad]*Budobjekt[Kvantitet]","v":0},{"$f":"_xlfn.RANK.EQ(Budobjekt[[#This Row],[Totalt]],Budobjekt[Totalt])","v":8}]
[{"$nulls":4},{"$f":"Budobjekt[Kostnad]*Budobjekt[Kvantitet]","v":0},{"$f":"_xlfn.RANK.EQ(Budobjekt[[#This Row],[Totalt]],Budobjekt[Totalt])","v":8}]
[1,{"$nulls":3},{"$f":"Budobjekt[Kostnad]*Budobjekt[Kvantitet]","v":0},{"$f":"_xlfn.RANK.EQ(Budobjekt[[#This Row],[Totalt]],Budobjekt[Totalt])","v":8}]
[2,null,null,"Delsumma",{"$f":"SUBTOTAL(109,Budobjekt[Totalt])","v":{"v":443.18999999999994,"d":"443.19 kr"}}]
[3,null,null,"Skattesats",{"v":0.075,"d":"7.50%"}]
[4,null,null,"Skatt",{"$f":"Momssats*Budobjekt[[#Totals],[Totalt]]","v":{"v":33.23924999999999,"d":"33.24 kr"}}]
[5,null,null,"Totalt",{"$f":"Moms+Budobjekt[[#Totals],[Totalt]]","v":{"v":476.4292499999999,"d":"476.43 kr"}}]
[]
[]
[]
[null,"ANALYS AV MATERIAL OCH KOSTNADER"]
[]
[]
[null,null,"TOTAL","ANTECKNINGAR"]
[null,{"$f":"INDEX(Budobjekt[],MATCH(A31,Budobjekt[[ ]],0),2)","v":"Arbetskostnader"},{"$f":"INDEX(Budobjekt[],MATCH(A31,Budobjekt[[ ]],0),4)","v":{"v":200,"d":"$200.00"}}]
[null,{"$f":"INDEX(Budobjekt[],MATCH(A32,Budobjekt[[ ]],0),2)","v":"2x4x10 virke"},{"$f":"INDEX(Budobjekt[],MATCH(A32,Budobjekt[[ ]],0),4)","v":{"v":99.39999999999999,"d":"$99.40"}}]
[null,{"$f":"INDEX(Budobjekt[],MATCH(A33,Budobjekt[[ ]],0),2)","v":"Balksko"},{"$f":"INDEX(Budobjekt[],MATCH(A33,Budobjekt[[ ]],0),4)","v":{"v":74.7,"d":"$74.70"}}]
[null,{"$f":"INDEX(Budobjekt[],MATCH(A34,Budobjekt[[ ]],0),2)","v":"2x8x10 virke"},{"$f":"INDEX(Budobjekt[],MATCH(A34,Budobjekt[[ ]],0),4)","v":{"v":33.75,"d":"$33.75"}}]
[null,{"$f":"INDEX(Budobjekt[],MATCH(A35,Budobjekt[[ ]],0),2)","v":"Ett par handskar, läder"},{"$f":"INDEX(Budobjekt[],MATCH(A35,Budobjekt[[ ]],0),4)","v":{"v":15.5,"d":"$15.50"}}]